Cogmind - Beta 13 @@@ ROGUE MODE // 2024.07.28 @ 21:21:42 Player: polar Result: Destroyed by CF-QCG(R) with Subdweller Laser Performance ------------- Evolutions (0) 0 Regions Visited (3) 600 Robots Destroyed (16) 80 Value Destroyed (298) 298 Prototype IDs (4) 80 Alien Tech Used (0) 0 Bonus (0) 0 TOTAL SCORE: 1058 Bonus ------- None Cogmind --------- Core Integrity 0/250 Matter 100/300 Energy 100/100 System Corruption 9% Temperature Cool (6) Movement Core (250) Ox4 Location -10/Subcaves Parts ------- > --- POWER (1) -------- (None) > --- PROPULSION (2) --- (None) > --- UTILITY (2) ------ Disposable Heat Sink Medium Storage Unit > --- WEAPON (2) ------- Assault Rifle > --- INVENTORY (10) --- Wheel Compact Wheel High-capacity Matter Pod (34) Light Assault Rifle Datajack Enhanced Flamer Heavy Explosive Trap Heavy Explosive Trap Peak State ------------ > --- POWER ------------ Light Nuclear Core > --- PROPULSION ------- Light Treads Light Treads > --- UTILITY ---------- Medium Storage Unit Subdweller Optics > --- WEAPON ----------- Medium Laser Enhanced Flamer > --- INVENTORY -------- Wheel Compact Wheel High-capacity Matter Pod Assault Rifle Light Assault Rifle Grenade Launcher Datajack Mining Laser Heavy Explosive Trap Heavy Explosive Trap [Rating: 13] Favorites ----------- Power Light Nuclear Core Engine Ion Engine Power Core Light Nuclear Core Propulsion Light Treads Treads Light Treads Utility Medium Storage Unit Device Seismic Detector Storage Medium Storage Unit Protection Light Armor Plating Weapon Medium Laser Energy Gun Medium Laser Ballistic Gun Assault Rifle Launcher Grenade Launcher Special Weapon Mining Laser Special Melee Weapon Datajack Build | -11 -10 -10 -10 ------- Run | Yrd Mat Min Sub Slots Evolved . | . . . . Power . | . . . . Propulsion . | . . . . Utility . | . . . . Weapon . | . . . . Parts Attached 31 | 8 4 6 13 Power 3 | 1 . 1 1 Engine 2 | 1 . 1 . Core 1 | . . . 1 Reactor . | . . . . Propulsion 3 | 2 . 1 . Treads 3 | 2 . 1 . Leg . | . . . . Wheel . | . . . . Hover . | . . . . Flight . | . . . . Utility 7 | 2 1 1 3 Device 4 | 1 . . 3 Storage 2 | 1 1 . . Processor . | . . . . Hackware . | . . . . Protection 1 | . . 1 . Artifact . | . . . . Weapon 18 | 3 3 3 9 Energy Gun 2 | 1 . . 1 Energy Cannon . | . . . . Ballistic Gun 7 | 2 1 1 3 Ballistic Cannon . | . . . . Launcher 3 | . . 1 2 Special Weapon 5 | . 2 . 3 Impact Weapon . | . . . . Slashing Weapon . | . . . . Piercing Weapon . | . . . . Special Melee Weapon 1 | . . 1 . Unidentified Prototypes . | . . . . Parts Lost 9 | . 2 . 7 Power 2 | . 1 . 1 Propulsion 2 | . . . 2 Utility 2 | . 1 . 1 Weapon 3 | . . . 3 Highest Loss Streak 5 | . 2 . 5 To Critical Strikes . | . . . . Average Slot Usage (%) 97 | . 99 99 95 Engine 8 | . 13 14 3 Core 5 | . . . 10 Treads 26 | . 28 28 25 Device 7 | . 13 . 5 Storage 14 | . 14 14 14 Protection 6 | . . 13 7 Energy Gun 12 | . 14 14 10 Ballistic Gun 8 | . 10 4 7 Launcher 1 | . . 1 2 Special Weapon 4 | . 3 . 7 Special Melee Weapon 1 | . . 7 . Naked Turns . | . . . . Heaviest Build 23 | 15 20 21 23 Greatest Support 40 | 40 40 40 40 Greatest Overweight (x) . | . . . . Average Overweight (x) . | . . . . Largest Inventory Capacity 10 | 8 10 10 10 Average Capacity 9 | 7 9 10 10 Most Carried 10 | 5 8 10 10 Average Carried 8 | 3 7 7 9 Final Capacity 10 | 8 10 10 10 Final Carried 10 | 5 8 10 8 Class Distribution -------------------- 100% | Mutant Dominant Class ---------------- Mutant | -10/Materials Mutant | -10/Mines Mutant | -10/Subcaves Resources | -11 -10 -10 -10 ----------- Run | Yrd Mat Min Sub Matter Collected 626 | 307 . 178 141 Remotely . | . . . . Salvage Created 423 | 133 . 135 155 Parts 28 | 9 . 11 8 Haulers Intercepted . | . . . . Recyclers Shooed 1 | 1 . . . Parts Field Recycled . | . . . . Retrieved Matter . | . . . . Parts Self-Destructed 3 | . . . 3 Prevented . | . . . . Kills | -11 -10 -10 -10 ------- Run | Yrd Mat Min Sub Combat Hostiles Destroyed 12 | . . 5 7 Guns 7 | . . 5 2 AOE 5 | . . . 5 Classes Destroyed 6 | 2 . 2 2 Tunneler 3 | 3 . . . Recycler 1 | 1 . . . Swarmer 7 | . . 3 4 Grunt 2 | . . 2 . Artisan 1 | . . . 1 Subdweller 3 | . . . 3 Best Kill Streak 4 | 4 . 3 4 Combat Bots Only 4 | . . 3 4 Max Kills in Single Turn 2 | 1 . 2 2 Gunslinging . | . . . . Exploded 2 | . . . 2 Melee . | . . . . Uniques/NPCs Destroyed . | . . . . Combat | -11 -10 -10 -10 -------- Run | Yrd Mat Min Sub Hostile Shots Fired 75 | . . 28 47 Missed 22 | . . 6 16 Damage Taken 1202 | . 198 301 703 Core 250 | . . 68 182 Absorbed by Shields . | . . . . Core Remaining (%) 100 | 100 . . . Volleys Fired 56 | 9 9 13 25 Largest 2 | 2 2 2 2 Hottest 150 | 70 150 70 150 Shots Fired 97 | 18 15 25 39 Gun 73 | 18 9 23 23 Cannon . | . . . . Launcher 11 | . . 2 9 Special 13 | . 6 . 7 Kinetic 31 | 9 . 12 10 Thermal 55 | 9 15 11 20 Explosive 11 | . . 2 9 Electromagnetic . | . . . . Robot Hit Streak 14 | 9 . 11 14 Robot Miss Streak 2 | 2 . 2 2 Penetration Max . | . . . . Secondary Targets 1 | . . 1 . Max Gunslinging Chain 1 | . . 1 . Shots Hit Robots 53 | 14 . 18 21 Core Hits 27 | 5 . 9 13 Critical Kills . | . . . . Critical Parts Destroyed . | . . . . Critical Strikes 4 | 2 . 2 . Burn 4 | 2 . 2 . Melee Attacks 1 | . . 1 . Impact . | . . . . Slashing . | . . . . Piercing . | . . . . Sneak Attacks 1 | . . 1 . Combat Hostiles . | . . . . Follow-up Attacks . | . . . . Damage Inflicted 1317 | 170 . 300 847 Guns 581 | 170 . 235 176 Cannons . | . . . . Explosions 690 | . . 65 625 Melee . | . . . . Ramming . | . . . . Kinetic 256 | 72 . 108 76 Thermal 371 | 98 . 127 146 Explosive 690 | . . 65 625 Electromagnetic . | . . . . Impact . | . . . . Slashing . | . . . . Piercing . | . . . . Highest Corruption 9 | . 9 9 9 Average Corruption 7 | . 1 9 9 Corruption Purged . | . . . . Corruption Blocked . | . . . . Effects 45 | . 3 11 31 Message Errors 8 | . . 2 6 Matter Fused 16 | . 2 2 12 Heat Flow Errors 7 | . . 3 4 Energy Discharges 3 | . 1 1 1 Parts Rejected 1 | . . 1 . Parts Fused 1 | . . . 1 Data Loss (minor) 4 | . . . 4 Data Loss (major) 2 | . . 1 1 Misfires 2 | . . 1 1 Alerts 1 | . . . 1 Overload Shots . | . . . . Overflow Damage 3 | . . . 3 Projectiles . | . . . . Explosions 3 | . . . 3 Melee . | . . . . Knockbacks . | . . . . Impact . | . . . . Kinetic . | . . . . Secondary . | . . . . Self-Inflicted Damage 165 | . . 42 123 Shots 7 | . . 2 5 Rammed . | . . . . Targets Rammed . | . . . . Kicked . | . . . . Crushed . | . . . . Highest Temperature 499 | 36 167 499 257 Average Temperature 91 | 15 74 139 70 Received Heat Transfer 282 | . . 120 162 Effects 1 | . . 1 . Shutdowns 1 | . . 1 . Siege Activations . | . . . . Robots Corrupted . | . . . . Combat Hostiles . | . . . . Parts Fried . | . . . . Impact Corruptions . | . . . . Robots Melted . | . . . . Combat Hostiles . | . . . . Parts Melted 5 | 2 . 3 . Heat Transferred 1578 | 444 . 518 616 Parts Sabotaged . | . . . . Parts Stolen . | . . . . Parts Stripped . | . . . . Power Chain Reactions . | . . . . Alert | -11 -10 -10 -10 ------- Run | Yrd Mat Min Sub Peak Influence 141 | 20 41 141 . Initial 13 | . 13 . . Average 44 | 8 18 113 . Maximum Alert Level . | . . . . Low Security (%) 100 | 100 100 100 . Level 1 . | . . . . Level 2 . | . . . . Level 3 . | . . . . Level 4 . | . . . . Level 5 . | . . . . High Security . | . . . . Max Security . | . . . . Squads Dispatched 1 | . 1 . . Investigation . | . . . . Extermination . | . . . . Reinforcement 1 | . 1 . . Assault . | . . . . Garrison . | . . . . Intercept . | . . . . Searches Triggered . | . . . . Construction Impeded . | . . . . Haulers Reinforced . | . . . . Active Scanning Responses . | . . . . Cargo Convoy Interrupts . | . . . . Stealth | -11 -10 -10 -10 --------- Run | Yrd Mat Min Sub Distress Signals . | . . . . Communications Jammed . | . . . . Distress Signals . | . . . . Times Spotted 18 | . 1 8 9 Peak Tracking Total 6 | . 1 4 6 Tactical Retreats 1 | . . . 1 Traps | -11 -10 -10 -10 ------- Run | Yrd Mat Min Sub Traps Triggered 1 | . 1 . . Indirectly . | . . . . Trap Hack Attempts . | . . . . Triggered . | . . . . Disarmed . | . . . . Reprogrammed . | . . . . Reused . | . . . . Traps Extracted . | . . . . Installed . | . . . . Triggered . | . . . . Most Traps Carried 2 | . . 2 2 Machines | -11 -10 -10 -10 ---------- Run | Yrd Mat Min Sub Machines Disabled . | . . . . Max in Single Turn . | . . . . Machines Repaired . | . . . . Machines Dismantled . | . . . . Machines Sabotaged . | . . . . Overloaded Fab Kills . | . . . . Hacking | -11 -10 -10 -10 --------- Run | Yrd Mat Min Sub Machines Accessed 4 | . 4 . . Terminals 4 | . 4 . . Fabricators . | . . . . Repair Stations . | . . . . Recycling Units . | . . . . Scanalyzers . | . . . . Garrison Access . | . . . . Total Hacks 13 | . 13 . . Successful 6 | . 6 . . Failed 7 | . 7 . . Catastrophic . | . . . . Database Lockouts . | . . . . Manual 10 | . 10 . . Terminals 13 | . 13 . . Fabricators . | . . . . Repair Stations . | . . . . Recycling Units . | . . . . Scanalyzers . | . . . . Garrison Access . | . . . . Terminal Hacks 4 | . 4 . . Part Schematic 2 | . 2 . . Prototype ID Bank 1 | . 1 . . Locate Traps 1 | . 1 . . Fabricator Hacks . | . . . . Repair Station Hacks . | . . . . Recycling Unit Hacks . | . . . . Scanalyzer . | . . . . Garrison Access Hacks . | . . . . Unauthorized Hacks 2 | . 2 . . Terminals 2 | . 2 . . Botnet 2 | . 2 . . Fabricators . | . . . . Repair Stations . | . . . . Recycling Units . | . . . . Scanalyzers . | . . . . Garrison Access . | . . . . Data Cores Recovered . | . . . . Used . | . . . . Hacking Detections 4 | . 4 . . Full Trace Events . | . . . . Feedback Events . | . . . . Feedback Blocked . | . . . . Robot Schematics Acquired . | . . . . Robots Built . | . . . . Authchips . | . . . . Time . | . . . . Total Robot Build Rating . | . . . . Part Schematics Acquired 2 | . 2 . . Parts Built . | . . . . Authchips . | . . . . Time . | . . . . Total Part Build Rating . | . . . . Parts Repaired . | . . . . Time . | . . . . Parts Recycled . | . . . . Recycled Matter . | . . . . Retrieved Matter . | . . . . Retrieved Components . | . . . . Parts Scanalyzed . | . . . . Part Schematics Acquired . | . . . . Parts Damaged . | . . . . Bothacking | -11 -10 -10 -10 ------------ Run | Yrd Mat Min Sub Used RIF Installer . | . . . . Robots Hacked 1 | . . 1 . Non-combat . | . . . . Combat 1 | . . 1 . Robot Hacks Applied 1 | . . 1 . parse_system 1 | . . 1 . Relay Couplers Released . | . . . . Fabnet Peak Effective % . | . . . . Robots Rewired . | . . . . Allies Hacked . | . . . . Hacks Repelled . | . . . . Allies | -11 -10 -10 -10 -------- Run | Yrd Mat Min Sub Total Allies . | . . . . Largest Group . | . . . . Highest-Rated Group . | . . . . Highest-Rated Ally . | . . . . Total Orders . | . . . . Ally Attacks . | . . . . Total Damage . | . . . . Kills . | . . . . Allies Corrupted . | . . . . Allies Melted . | . . . . Intel | -11 -10 -10 -10 ------- Run | Yrd Mat Min Sub Robot Analysis Total . | . . . . Derelict Logs Recovered . | . . . . Drone Launches . | . . . . Drone Recoveries . | . . . . Exploration | -11 -10 -10 -10 ------------- Run | Yrd Mat Min Sub Turns Passed 1872 | 122 556 270 924 Spaces Moved 959 | 50 274 131 504 Core 5 | 5 . . . Treads 954 | 45 274 131 504 Legs . | . . . . Wheels . | . . . . Hover . | . . . . Flight . | . . . . Fastest Speed 50 | 50 160 160 160 Average Speed 159 | 149 160 160 160 Slowest Speed 160 | 160 160 160 160 Overloaded Moves . | . . . . Propulsion Burnouts . | . . . . Robots Hopped . | . . . . Cave-ins Triggered 1 | . 1 . . Exploration Rate (%) 31 | 5 50 41 28 Regions Visited 3 Branch Regions 2 Pre-discovered Areas . | . . . . Known Exits Taken . | . . . . Unknown Exits Taken 3 | 1 1 1 . Scrap Searched 1 | . . 1 . Spaces Dug 10 | . 6 . 4 Terrain Destroyed 65 | . 6 10 49 Melee . | . . . . Projectile 6 | . 6 . . AOE 59 | . . 10 49 Terrain Rammed . | . . . . Walls Destroyed . | . . . . Machines Disabled . | . . . . Actions | -11 -10 -10 -10 --------- Run | Yrd Mat Min Sub Total 1178 | 76 363 165 574 Wait 116 | 5 73 11 27 Move 956 | 49 273 130 504 Hop . | . . . . Pick Up 13 | 5 3 4 1 Fast Attach 11 | 7 . 1 3 Attach 5 | . . 2 3 Detach . | . . . . Swap 15 | 1 4 3 7 Drop 5 | . 1 . 4 Fire 56 | 9 9 13 25 Melee 1 | . . 1 . Ram . | . . . . Kick . | . . . . Crush . | . . . . Escape Stasis . | . . . . Rewire . | . . . . Trap . | . . . . Miscellaneous . | . . . . Route ------- -11/Scrapyard -10/Materials -10/Mines -10/Subcaves (discovered 1 exit: [*Mat]) History --------- Turn | Location | Event 4 | -11/Scrapyard | Discovered new exit (range 14) 123 | -11/Scrapyard | Entered Materials 315 | -10/Materials | Build established: Mutant 433 | -10/Materials | Discovered new exit (range 16) 666 | -10/Materials | Crushed by falling debris 679 | -10/Materials | Entered Mines 728 | -10/Mines | Met a Derelict bent on vengeance 786 | -10/Mines | YI-UF0 nonchalantly dropped a Grenade Launcher on the ground 845 | -10/Mines | Found a hidden stash of uninstalled traps 920 | -10/Mines | Assembled infested the area 925 | -10/Mines | Assisted by a Guerilla fighting off Assembled 933 | -10/Mines | Discovered new exit (range 6) 949 | -10/Mines | Entered Subcaves 1024 | -10/Subcaves | Discovered new exit (range 15) 1177 | -10/Subcaves | Shifting Twisted Machinery released Flamer 1525 | -10/Subcaves | Shifting Twisted Machinery released Enh. Flamer 1569 | -10/Subcaves | Shifting Twisted Machinery released Shrapnel Trap 1860 | -10/Subcaves | Core integrity fell below 50% 1870 | -10/Subcaves | Core integrity fell below 20% 1873 | -10/Subcaves | Destroyed by CF-QCG(R) with Subdweller Laser Last Messages --------------- to Scrap Shield. 01720_ 09-IJ3(R) destroyed. 01726_ Acquired 20 matter. 01728_ The unstable cave ceiling collapses. 01730_ Acquired Disposable Heat Sink. 01734_ The unstable cave ceiling collapses. 01750_ Acquired 46 matter. 01755_ Dropped Disposable Heat Sink. 01760_ System corrupted: Matter fused (-10). 01779_ EB06LW|0W8IESVT,YIF9SQ#,7I& 01803_ System corrupted: Matter fused (-6). 01826_ System corrupted: IFF burst signal emitted. 01841_ System corrupted: Matter fused (-5). 01855_ Mining Laser destroyed. 01859_ Lgt. Treads destroyed. 01859_ Destroyed Lgt. Treads. 01861_ Grenade Launcher destroyed. 01863_ Med. Laser destroyed. 01867_ Lgt. Nuclear Core destroyed. Map ----- +----------------------------------------------------+ | ??????????????####???###?# "###"" ###??????????? | | ?????????????????????????# ##?#""##????????????? | | ?????????????????????????## ##??##"#?????????????? | | ?????????????????????????## ###??###?????????????? | | ?????????????????????????# ###????????????????? | | ?????????????????????????# #????????##??????? | | ?????????????????????????# ##????### #??????? | | ?????????????????????????### [ #????# #??????? | | ?????????????????????????# & ###???## ##??????? | | ?????????????????????????# # #???## #??????? | | ?????????????????????????## ####?# #??????? | | ??????????????????????????#### #### ##?????? | | ???????????????????????????## # # #?????? | | ???????????????????????????# !! ##????? | | ???????????????????????????# & * #????? | | ??????????????????????????# ### #### ##????? | | ??????????????????????????# ??#### ##?## ##????? | | ??????????????????????????# ?????###?## #????? | | ??????????????????????????## ????????## #????? | | ??????????????????????????####???????## ##????? | | ?????????????????????????## ###?????# ##?????? | | ?????????????????????##??# #?????## ##??????? | | ?????????????????????# ### ####### ##??????? | | ????????????????????## # "" #??????? | | ????????????????????# """"#??????? | | ????????????????????# @ ### """"" #??????? | | ????????????????????# R ##?#### "" "#?????? | | ????????????????????# ###?????#### """#?????? | | ???????????????????# R #????##????##""""?????? | | ???????????????????## #?? #??????#"""?????? | | ????????????????????## ## ##??????""??????? | | ????????????????????? # #??????????????? | | ????????????????????### #??????????? | | ??????????????????????# ""??????????? | | ????????????????????? """???????????? | | ???????????????????? "" ????????????? | | ??????????????????? "" ?????????????? | | ??????????????????## ##" ?????????????? | | ???????????????????# ##?? ?????????????? | | ??????????????????? #??????????????????? | | ??????????????????# ??????????????????? | | ??????????????????# ##### ?????????????????? | | ??????????????????## #?????## #????????????????? | | ???????????????????# ???????? ????????????????? | | ???????????????????##????????? ???????????????? | | ?????????????????????????????? ?????????????????? | | ?????????????????????????????????????????????????? | | ?????????????????????????????????????????????????? | | ?????????????????????????????????????????????????? | | ?????????????????????????????????????????????????? | +----------------------------------------------------+ Best States ------------- Heat Dissipation 25 Coolant Potential 50 Energy Generation 14 Energy Capacity 250 Matter Stores 300 Matter Capacity 300 Sight Range 21 Terrain Scan Density 10 Armor Coverage 150 Evasion (%) 40 Recoil Reduction 2 Item Schematics ----------------- Cargo Storage Unit | -10/Materials | Hacked Lgt. Treads | -10/Materials | Hacked Robot Schematics ------------------ None Fabricated ------------ Nothing Alien Tech Used ----------------- None Achievements -------------- None Challenges ------------ None Game ------ Seed TargetTerrainBiocell Manual? 0 Play Time 00:16:22 Cumulative 265.1 hours Start 2024.07.28 @ 21:05:26 End 2024.07.28 @ 21:21:42 Sessions 1 Manual Loads 0 Difficulty Rogue Special Mode None Game No. 100 Rogue 98 Adventurer 0 Explorer 2 Win Type - Total 7 Types 5/0/1/1/0/0/0/0/0 Lore% 80 Gallery% 82 Achievement% 69 Wizard Run 0 Options --------- Layout 2 ASCII 0 Keyboard 0 Movement Numpad Keybinds 0 Fullscreen 1 Font 24/Smallcaps Map View 50x44 Zoom Use 0% Tactical HUD 1 Map Filters NONE Filters NONE Steam 0 RUN: 88df0593-dbba-46af-8ea6-7498394c542c